bitfinex/quotes_BTCUSD_20241120
["timestamp","ask_amount","ask_price","bid_price","bid_amount"]
[1732061964692,0.04358,92099.0,92098.0,0.0008556]
[1732061964897,0.51332055,92099.0,92098.0,0.0008556]
[1732061965436,0.40474255,92099.0,92098.0,0.0008556]
[1732061966475,0.51332055,92099.0,92098.0,0.0008556]
[1732061967333,0.55782216,92099.0,92098.0,0.0008556]
[1732061967540,0.06658,92092.0,92091.0,0.0004]
[1732061967750,0.27835794,92092.0,92091.0,0.0004]
[1732061967988,0.27364255,92092.0,92091.0,0.0004]
[1732061968396,0.27564255,92092.0,92091.0,0.0004]
[1732061972349,0.26364255,92092.0,92091.0,0.0759]
[1732061972551,0.25364255,92092.0,92091.0,0.0759]
[1732061972734,0.13064255,92092.0,92091.0,0.0759]
[1732061972943,0.12906255,92092.0,92091.0,0.0759]
[1732061973689,0.13064255,92092.0,92091.0,0.0759]
[1732061974674,0.12883055,92092.0,92091.0,0.0759]
[1732061975294,0.15183055,92092.0,92091.0,0.0759]
[1732061975518,0.15183055,92092.0,92091.0,0.0004]
[1732061975724,0.40364555,92092.0,92091.0,0.0004]
[1732061975944,0.27183055,92092.0,92091.0,0.0004]
[1732061976175,0.26383055,92092.0,92091.0,0.0004]
[1732061976383,0.26183055,92092.0,92091.0,0.0004]
[1732061976655,0.26183055,92092.0,92091.0,0.0012546]
[1732061977165,0.26383055,92092.0,92091.0,0.0012546]
[1732061977402,0.27383055,92092.0,92091.0,0.0012546]
[1732061977642,0.26183055,92092.0,92091.0,0.0012546]
[1732061978581,0.27183055,92092.0,92091.0,0.0012546]
[1732061978806,0.27383055,92092.0,92091.0,0.0012546]
[1732061979286,0.27183055,92092.0,92091.0,0.0012546]
[1732061979549,0.26183055,92092.0,92091.0,0.0012546]
[1732061980279,0.15183055,92092.0,92091.0,0.0501546]
[1732061983568,0.15183055,92092.0,92091.0,0.0012546]
[1732061984465,0.16183055,92092.0,92091.0,0.0012546]
[1732061984717,0.16454567,92092.0,92091.0,0.0012546]
[1732061984946,0.16654567,92092.0,92091.0,0.0012546]
[1732061985633,0.27654567,92092.0,92091.0,0.0012546]
[1732061985879,0.27025055,92092.0,92091.0,0.0012546]
[1732061988315,0.27383055,92092.0,92091.0,0.0012546]
[1732061988520,0.27025055,92092.0,92091.0,0.0012546]
[1732061988953,0.27383055,92092.0,92091.0,0.0012546]
[1732061989162,0.27225055,92092.0,92091.0,0.0012546]
[1732061989672,0.27025055,92092.0,92091.0,0.0012546]
[1732061991659,0.27183055,92092.0,92091.0,0.0012546]
[1732061992900,0.38241755,92092.0,92091.0,0.0012546]
[1732061993103,0.42861755,92092.0,92091.0,0.0012546]
[1732061993521,0.46239917,92092.0,92091.0,0.0012546]
[1732061994175,0.45881917,92092.0,92091.0,0.0012546]
[1732061994405,0.54439917,92092.0,92091.0,0.0012546]
[1732061994670,0.68937417,92092.0,92091.0,0.0012546]
[1732061994885,0.68737417,92092.0,92091.0,0.0012546]
[1732061995115,0.269778,92089.0,92088.0,0.0008542]
[1732061995347,0.55816829,92089.0,92088.0,0.0008542]
[1732061995581,0.77088189,92089.0,92088.0,0.0008542]
[1732061995792,0.96494429,92089.0,92088.0,0.0008542]
[1732061996022,0.96852429,92089.0,92088.0,0.0008542]
[1732061996232,0.66587189,92089.0,92088.0,0.0008542]
[1732061996437,0.66583935,92089.0,92088.0,0.0008542]
[1732061996669,0.27383055,92089.0,92088.0,0.0008542]
[1732061996895,0.37088392,92089.0,92088.0,0.0008542]
[1732061997353,0.27383055,92089.0,92088.0,0.0008542]
[1732062003511,0.27225055,92089.0,92088.0,0.0008542]
[1732062003742,0.27383055,92089.0,92088.0,0.0008542]
[1732062003962,0.46813183,92089.0,92088.0,0.0008542]
[1732062004164,0.41970075,92089.0,92088.0,0.0008542]
[1732062004368,0.27383055,92089.0,92088.0,0.0008542]
[1732062005490,0.3710945,92089.0,92088.0,0.0008542]
[1732062007213,0.37109882,92089.0,92088.0,0.0008542]
[1732062007846,0.27383055,92089.0,92088.0,0.0008542]
[1732062010076,0.41973296,92089.0,92088.0,0.0008542]
[1732062012707,0.27383055,92089.0,92088.0,0.0008542]
[1732062012919,0.82747696,92089.0,92088.0,0.0008542]
[1732062013344,0.63294041,92089.0,92088.0,0.0008542]
[1732062014967,0.63293911,92089.0,92088.0,0.0008542]
[1732062015600,0.86702911,92089.0,92088.0,0.0008542]
[1732062016016,1.11021989,92089.0,92088.0,0.0008542]
[1732062016406,0.86702911,92089.0,92088.0,0.0008542]
[1732062017571,1.11019522,92089.0,92088.0,0.0008542]
[1732062019462,0.86702911,92089.0,92088.0,0.0008542]
[1732062020090,0.86700821,92089.0,92088.0,0.0008542]
[1732062022286,0.75841821,92089.0,92088.0,0.0008542]
[1732062022753,0.80253982,92089.0,92088.0,0.0008542]
[1732062023178,0.39678689,92089.0,92088.0,0.0008542]
[1732062024249,0.27383055,92089.0,92088.0,0.0008542]
[1732062024701,0.41975825,92089.0,92088.0,0.0008542]
[1732062025031,0.41976166,92089.0,92088.0,0.0008542]
[1732062026367,0.41776166,92089.0,92088.0,0.0008542]
[1732062026790,0.40776166,92089.0,92088.0,0.0008542]
[1732062027044,0.28957366,92089.0,92088.0,0.0008542]
[1732062027248,0.12883055,92089.0,92088.0,0.0008542]
[1732062027454,0.13154557,92089.0,92088.0,0.0506542]
[1732062027687,0.12883055,92089.0,92088.0,0.0506542]
[1732062028300,0.12725055,92089.0,92088.0,0.0506542]
[1732062028534,0.12883055,92089.0,92088.0,0.0506542]
[1732062028741,0.15183055,92089.0,92088.0,0.0506542]
[1732062029641,0.15183055,92089.0,92088.0,0.0008542]
[1732062029844,0.1545456,92089.0,92088.0,0.0008542]
[1732062030061,0.25185101,92089.0,92088.0,0.0008542]
[1732062030283,0.15183055,92089.0,92088.0,0.0008542]
[1732062030519,0.3004768,92089.0,92088.0,0.0008542]
[1732062030728,0.16383055,92089.0,92088.0,0.0008542]
[1732062030913,0.31256057,92089.0,92088.0,0.0008542]
[1732062031151,0.16383055,92089.0,92088.0,0.0008542]
[1732062031377,0.31256242,92089.0,92088.0,0.0008542]
[1732062031588,0.16383055,92089.0,92088.0,0.0008542]
[1732062031800,0.16654598,92089.0,92088.0,0.0008542]
[1732062032830,0.52590469,92089.0,92088.0,0.0008542]
[1732062033085,0.71789025,92089.0,92088.0,0.0008542]
[1732062033859,0.69789025,92089.0,92088.0,0.0008542]
[1732062034065,0.70589025,92089.0,92088.0,0.0008542]
[1732062034308,0.22618827,92089.0,92088.0,0.0008542]
[1732062034524,0.12883055,92089.0,92088.0,0.0008542]
[1732062034749,0.13154558,92089.0,92088.0,0.0008542]
[1732062035380,0.13154558,92089.0,92088.0,0.006541]
[1732062036822,0.15454558,92089.0,92088.0,0.006541]
[1732062037145,0.15183055,92089.0,92088.0,0.006541]
[1732062039112,0.15183055,92089.0,92088.0,0.02176407]
[1732062039958,0.16454546,92089.0,92088.0,0.02176407]
[1732062040162,0.15454546,92089.0,92088.0,0.02176407]
[1732062041178,0.15454558,92089.0,92088.0,0.02176407]
[1732062041396,0.15183055,92089.0,92088.0,0.02176407]
[1732062041619,0.15454558,92089.0,92088.0,0.02176407]
[1732062041830,0.14454558,92089.0,92088.0,0.02176407]
[1732062042033,0.15183055,92089.0,92088.0,0.02176407]
[1732062042818,0.15454559,92089.0,92088.0,0.02176407]
[1732062043014,0.15183055,92089.0,92088.0,0.02176407]
[1732062043634,0.15454558,92089.0,92088.0,0.02176407]
[1732062043995,0.15183055,92089.0,92088.0,0.02176407]
[1732062044450,0.14183055,92089.0,92088.0,0.02176407]
[1732062044665,0.15183055,92089.0,92088.0,0.02176407]
[1732062045905,0.14183055,92089.0,92088.0,0.02176407]
[1732062046131,0.15183055,92089.0,92088.0,0.06686407]
[1732062046355,0.15183055,92089.0,92088.0,0.15006407]
[1732062048313,0.15183055,92089.0,92088.0,0.15005955]
[1732062048941,0.15183055,92089.0,92088.0,0.10495955]
[1732062051277,0.14364255,92089.0,92088.0,0.10495955]
[1732062051477,0.14364255,92089.0,92088.0,0.089741]
[1732062051693,0.15183055,92089.0,92088.0,0.10496485]
[1732062052153,0.15183055,92089.0,92088.0,0.12932361]
[1732062052154,0.12744525,92089.0,92088.0,0.12932361]
[1732062052580,0.12197212,92089.0,92088.0,0.12932361]
[1732062052788,0.13016012,92089.0,92088.0,0.12932361]
[1732062053461,0.12744525,92089.0,92088.0,0.12932361]
[1732062054783,0.12744525,92089.0,92088.0,0.089741]
[1732062055004,0.12744525,92089.0,92088.0,0.12933503]
[1732062056518,0.12744525,92089.0,92088.0,0.04613503]
[1732062056936,0.13016013,92089.0,92088.0,0.04613503]
[1732062057413,0.27926013,92089.0,92088.0,0.04613503]
[1732062057616,0.37654525,92089.0,92088.0,0.04613503]
[1732062058028,0.37654525,92089.0,92088.0,0.02176924]
[1732062058243,0.37654525,92089.0,92088.0,0.006541]
[1732062061990,0.27654525,92089.0,92088.0,0.006541]
[1732062062224,0.37654525,92089.0,92088.0,0.006541]
[1732062065529,0.27654525,92089.0,92088.0,0.006541]
[1732062065741,0.37654525,92089.0,92088.0,0.006541]
[1732062066184,0.24944525,92089.0,92088.0,0.006541]
[1732062067765,0.21744525,92089.0,92088.0,0.006541]
[1732062067994,0.23016049,92089.0,92088.0,0.006541]
[1732062068223,0.22744525,92089.0,92088.0,0.006541]
[1732062068439,0.23744525,92089.0,92088.0,0.006541]
[1732062068663,0.22744525,92089.0,92088.0,0.006541]
[1732062068884,0.10444525,92089.0,92088.0,0.006541]
[1732062069099,0.11716034,92089.0,92088.0,0.006541]
[1732062070014,0.00158,92057.0,92056.0,0.001812]
[1732062070243,0.11064255,92057.0,92056.0,0.001812]
[1732062071133,0.00158,92056.0,92055.0,0.001812]
[1732062072235,0.11064255,92057.0,92056.0,0.001812]
[1732062072701,0.10906255,92057.0,92056.0,0.001812]
[1732062073130,0.10906255,92057.0,92056.0,0.133012]
[1732062074223,0.11064255,92057.0,92056.0,0.133012]
[1732062075319,0.11064255,92057.0,92056.0,0.1312]
[1732062078074,0.11064255,92057.0,92051.0,0.0004]
[1732062078075,0.00158,92052.0,92051.0,0.0004]
[1732062078314,0.11064255,92052.0,92051.0,0.0004]
[1732062081607,0.10906255,92052.0,92051.0,0.0004]
[1732062081817,0.12725055,92052.0,92051.0,0.0004]
[1732062082037,0.15183055,92052.0,92051.0,0.0004]
[1732062082472,0.19561611,92052.0,92051.0,0.0004]
[1732062083320,0.19561611,92052.0,92051.0,0.001254]
[1732062087960,0.00158,92038.0,92022.0,0.1]
[1732062088176,0.10906255,92037.0,92022.0,0.1]
[1732062088383,0.10906255,92037.0,92023.0,0.00183383]
[1732062088715,0.00158,92035.0,92023.0,0.00183383]
[1732062088925,0.11064255,92035.0,92023.0,0.00183383]
[1732062089387,0.10906255,92035.0,92023.0,0.00183383]
[1732062089536,0.10906255,92035.0,92024.0,0.00217298]
[1732062089947,0.10906255,92035.0,92019.0,0.00217298]
[1732062090790,0.10906255,92035.0,92020.0,0.1261]
[1732062090987,0.10906255,92035.0,92021.0,0.10217293]
[1732062094141,0.11064255,92035.0,92021.0,0.10217293]
[1732062094576,0.10906255,92035.0,92021.0,0.10217293]
[1732062094977,0.11064255,92035.0,92021.0,0.10217293]
[1732062095492,0.10906255,92035.0,92021.0,0.10302723]
[1732062095908,0.11064255,92035.0,92021.0,0.10302723]
[1732062097261,0.10906255,92034.0,92021.0,0.10302723]
[1732062097463,0.10906255,92034.0,92021.0,0.1008543]
[1732062097911,0.07517966,92034.0,92021.0,0.1008543]
[1732062098314,0.00158,92031.0,92021.0,0.1008543]
[1732062098799,0.00158,92032.0,92021.0,0.1008543]
[1732062099011,0.07517966,92034.0,92021.0,0.1008543]
[1732062099012,0.00158,92031.0,92021.0,0.1008543]
[1732062100060,0.00158,92030.0,92021.0,0.1008543]
[1732062101783,0.07517966,92034.0,92021.0,0.1008543]
[1732062103137,0.00158,92032.0,92021.0,0.1008543]
[1732062104695,0.00158,92028.0,92021.0,0.0008543]
[1732062105113,0.00158,92024.0,92021.0,0.0008543]
[1732062105318,0.00158,92028.0,92021.0,0.0008543]
[1732062106210,0.00158,92025.0,92021.0,0.0008543]
[1732062106437,0.10906255,92024.0,92021.0,0.0008543]
[1732062106666,0.00158,92023.0,92021.0,0.0008543]
[1732062106884,0.11064255,92022.0,92021.0,0.0008543]
[1732062107578,0.10906255,92022.0,92021.0,0.0008543]
[1732062108033,0.0811,92038.0,92021.0,0.0008543]
[1732062108255,0.0811,92038.0,92022.0,0.00217309]
[1732062108256,0.10906255,92030.0,92022.0,0.00217309]
[1732062108708,0.00158,92028.0,92022.0,0.00217309]
[1732062108929,0.11064255,92028.0,92022.0,0.00217309]
[1732062109154,0.00158,92027.0,92021.0,0.00302747]
[1732062110134,0.00158,92024.0,92021.0,0.00302747]
[1732062110364,0.00158,92024.0,92021.0,0.0008543]
[1732062110581,0.10906255,92023.0,92021.0,0.0008543]
[1732062111268,0.00158,92022.0,92021.0,0.0008543]
[1732062111491,0.11064255,92022.0,92021.0,0.0008543]
[1732062113053,0.10906255,92022.0,92021.0,0.0008543]
[1732062113306,0.11064255,92022.0,92021.0,0.0008543]
[1732062113957,0.10906255,92022.0,92021.0,0.0008543]
[1732062114173,0.11064255,92022.0,92021.0,0.0008543]
[1732062119252,0.10906255,92022.0,92021.0,0.0008543]
[1732062121285,0.0811,92029.0,92021.0,0.0008543]
[1732062121504,0.00158,92032.0,92021.0,0.0008543]
[1732062121505,0.00158,92046.0,92021.0,0.00302761]
[1732062121731,0.01,92047.0,92021.0,0.00302761]
[1732062121732,0.001709,92034.0,92021.0,0.19752649]
[1732062121948,0.001709,92034.0,92022.0,0.19449888]
[1732062122181,0.001709,92034.0,92023.0,0.1]
[1732062122397,0.001709,92034.0,92023.0,0.29449888]
[1732062122852,0.001709,92034.0,92024.0,0.00217289]
[1732062123308,0.001709,92034.0,92025.0,0.1]
[1732062123309,0.10906255,92033.0,92025.0,0.1]
[1732062124633,0.10906255,92033.0,92022.0,0.00217308]
[1732062124634,0.10906255,92033.0,92022.0,0.29667196]
[1732062124878,0.001709,92034.0,92022.0,0.29449888]
[1732062125087,0.001709,92034.0,92024.0,0.29449888]
[1732062125295,0.001709,92034.0,92026.0,0.19449888]
[1732062125549,0.001709,92034.0,92027.0,0.0021729]
[1732062126461,0.001709,92034.0,92027.0,0.19667178]
[1732062127367,0.001709,92034.0,92028.0,0.19449888]
[1732062127602,0.001709,92034.0,92029.0,0.0021729]
[1732062128244,0.001709,92034.0,92029.0,0.19697198]
[1732062129624,0.001709,92034.0,92032.0,0.19479908]
[1732062129854,0.001709,92034.0,92033.0,0.19697188]
[1732062130112,0.001709,92034.0,92033.0,0.0021728]
[1732062130755,0.001709,92034.0,92031.0,0.24349886]
[1732062130756,0.001709,92034.0,92032.0,0.0021728]
[1732062131423,0.001709,92034.0,92032.0,0.24567166]
[1732062131655,0.001709,92034.0,92033.0,0.19478828]
[1732062131870,0.001709,92034.0,92033.0,0.19696108]
[1732062132083,0.001709,92034.0,92033.0,0.0021728]
[1732062132595,0.001709,92034.0,92033.0,0.34567166]
[1732062132844,0.001709,92034.0,92033.0,0.2295]
[1732062133075,0.001709,92034.0,92033.0,0.52169863]
[1732062133357,0.001709,92034.0,92033.0,0.2295]
[1732062133570,0.001709,92034.0,92033.0,0.22992]
[1732062133999,0.0017086,92057.0,92038.0,0.00042]
[1732062134220,0.0017086,92057.0,92048.0,0.19470619]
[1732062134446,0.0755,92064.0,92051.0,0.19470619]
[1732062134661,0.0755,92064.0,92049.0,0.08337236]
[1732062134662,0.18456255,92064.0,92052.0,0.19687852]
[1732062134890,0.18456255,92064.0,92053.0,0.19470619]
[1732062135104,0.18456255,92064.0,92054.0,0.00217233]
[1732062135336,0.18456255,92064.0,92054.0,0.10217233]
[1732062135565,0.0755,92064.0,92054.0,0.10217233]
[1732062136031,0.0755,92064.0,92054.0,0.29687852]
[1732062136249,0.0755,92064.0,92054.0,0.1]
[1732062136512,0.0755,92064.0,92054.0,0.00217229]
[1732062137831,0.0755,92064.0,92052.0,0.1]
[1732062137832,0.0755,92064.0,92055.0,0.00217229]
[1732062138064,0.0477,92069.0,92055.0,0.00217229]
[1732062138065,0.1232,92069.0,92055.0,0.00217229]
[1732062138296,0.0755,92075.0,92055.0,0.00217229]
[1732062138509,0.10906255,92074.0,92055.0,0.10217229]
[1732062138755,0.10906255,92074.0,92058.0,0.19470619]
[1732062139002,0.10906255,92074.0,92059.0,0.00217209]
[1732062139234,0.10906255,92074.0,92056.0,0.19470619]
[1732062139446,0.10906255,92074.0,92055.0,0.1]
[1732062139668,0.0755,92060.0,92055.0,0.1]
[1732062139886,0.18456255,92060.0,92055.0,0.1]
[1732062140123,0.18456255,92060.0,92046.0,0.1]
[1732062140124,0.00158,92055.0,92046.0,0.1]
[1732062140361,0.10906255,92059.0,92047.0,0.00217245]
[1732062141558,0.10906255,92059.0,92041.0,0.29470619]
[1732062141792,0.10906255,92059.0,92041.0,0.1]
[1732062142024,0.00158,92055.0,92041.0,0.1]
[1732062142467,0.00158,92055.0,92039.0,0.1]
[1732062142682,0.04928,92058.0,92038.0,0.14382111]
[1732062142889,0.15834255,92058.0,92038.0,0.14382111]
[1732062143132,0.15834255,92058.0,92038.0,0.1]
[1732062143580,0.15834255,92058.0,92038.0,0.29470619]
[1732062143803,0.15834255,92058.0,92041.0,0.1]
[1732062144975,0.15834255,92058.0,92040.0,0.1]
[1732062145185,0.15834255,92058.0,92040.0,0.29470619]
[1732062145645,0.15834255,92058.0,92040.0,0.1]
[1732062145874,0.15834255,92058.0,92040.0,0.29470619]
[1732062146098,0.15834255,92058.0,92039.0,0.1]
[1732062146321,0.15834255,92058.0,92039.0,0.29470619]
[1732062146554,0.00158,92055.0,92039.0,0.29470619]
[1732062146777,0.15676255,92058.0,92039.0,0.29470619]
[1732062146778,0.15834255,92058.0,92039.0,0.29470619]
[1732062147211,0.00158,92055.0,92039.0,0.29470619]
[1732062147431,0.00158,92057.0,92038.0,0.1]
[1732062148095,0.15676255,92058.0,92038.0,0.1]
[1732062148096,0.15676255,92058.0,92038.0,0.29470619]
[1732062148734,0.15676255,92058.0,92038.0,0.1]
[1732062149231,0.001709,92059.0,92040.0,0.1]
[1732062149448,0.001709,92059.0,92051.0,0.00042]
[1732062149662,0.001709,92059.0,92049.0,0.1]
[1732062150747,0.001709,92059.0,92047.0,0.1]
[1732062151773,0.001709,92059.0,92046.0,0.1]
[1732062152032,0.001709,92059.0,92045.0,0.1]
[1732062152245,0.001709,92059.0,92046.0,0.1]
[1732062154702,0.001709,92059.0,92040.0,0.19393538]
[1732062154703,0.0798,92057.0,92040.0,0.19393538]
[1732062154929,0.001709,92059.0,92037.0,0.04445554]
[1732062154930,0.1289,92055.0,92037.0,0.04445554]
[1732062155150,0.0798,92053.0,92037.0,0.03445554]
[1732062155611,0.0798,92053.0,92046.0,0.0008543]
[1732062156944,0.00158,92051.0,92046.0,0.0008543]
[1732062157832,0.00158,92048.0,92046.0,0.0008543]
[1732062158060,0.00158,92050.0,92046.0,0.0008543]
[1732062158320,0.00158,92051.0,92046.0,0.0008543]
[1732062160093,0.00158,92052.0,92046.0,0.0008543]
[1732062160314,0.1243,92047.0,92046.0,0.0008543]
[1732062160534,0.24336255,92047.0,92046.0,0.0008543]
[1732062160765,0.25336255,92047.0,92046.0,0.0008543]
[1732062164279,0.25494255,92047.0,92046.0,0.0008543]
[1732062164508,0.23336255,92047.0,92046.0,0.0008543]
[1732062164720,0.24336255,92047.0,92046.0,0.0008543]
[1732062165151,0.24494255,92047.0,92046.0,0.0008543]
[1732062165584,0.23494255,92047.0,92046.0,0.0008543]
[1732062166243,0.24494255,92047.0,92046.0,0.0008543]
[1732062166465,0.25494255,92047.0,92046.0,0.0008543]
[1732062175176,0.27794255,92047.0,92046.0,0.0008543]
[1732062176044,0.25494255,92047.0,92046.0,0.0008543]
[1732062176259,0.23336255,92047.0,92046.0,0.0008543]
[1732062176481,0.00158,92047.0,92046.0,0.0008543]
[1732062176699,0.00158,92052.0,92046.0,0.0008543]
[1732062176910,0.10906255,92051.0,92046.0,0.0008543]
[1732062177126,0.001709,92059.0,92046.0,0.0008543]
[1732062177127,0.00158,92056.0,92046.0,0.0008543]
[1732062177405,0.10906255,92055.0,92046.0,0.0008543]
[1732062177835,0.11064255,92055.0,92046.0,0.0008543]
[1732062178063,0.00158,92054.0,92046.0,0.0008543]
[1732062178282,0.11064255,92054.0,92046.0,0.0008543]
[1732062179412,0.11064255,92054.0,92047.0,0.00217257]
[1732062180507,0.11064255,92054.0,92046.0,0.0008543]
[1732062183107,0.10906255,92054.0,92047.0,0.00217257]
[1732062183825,0.10906255,92054.0,92046.0,0.0008543]
[1732062183826,0.001709,92059.0,92046.0,0.0008543]
[1732062184041,0.11077155,92059.0,92047.0,0.00217257]
[1732062184256,0.001709,92059.0,92047.0,0.00217257]
[1732062184698,0.001709,92059.0,92046.0,0.0008543]
[1732062184699,0.0779,92057.0,92046.0,0.0008543]
[1732062184926,0.10906255,92056.0,92047.0,0.00217258]
[1732062185197,0.10906255,92056.0,92046.0,0.0008543]
[1732062185831,0.00158,92055.0,92046.0,0.0008543]
[1732062186053,0.10906255,92054.0,92046.0,0.0008543]
[1732062186277,0.00158,92050.0,92046.0,0.0008543]
[1732062187173,0.01,92047.0,92046.0,0.0008543]
[1732062187413,0.28065897,92047.0,92046.0,0.0008543]
[1732062187697,0.27794255,92047.0,92046.0,0.0008543]
[1732062187911,0.23494255,92047.0,92046.0,0.0008543]
[1732062188792,0.18854255,92047.0,92046.0,0.0008543]
[1732062189024,0.18696255,92047.0,92046.0,0.0008543]
[1732062190600,0.19854255,92047.0,92046.0,0.0008543]
[1732062190833,0.20854255,92047.0,92046.0,0.0008543]
[1732062192624,0.20696255,92047.0,92046.0,0.0008543]
[1732062193744,0.20854255,92047.0,92046.0,0.0008543]
[1732062195878,0.19854255,92047.0,92046.0,0.0008543]
[1732062196341,0.20854255,92047.0,92046.0,0.0008543]
[1732062196568,0.18854255,92047.0,92046.0,0.0008543]
[1732062198020,0.00158,92052.0,92046.0,0.0008543]
[1732062198233,0.0017082,92054.0,92046.0,0.0008543]
[1732062198473,0.0017082,92054.0,92047.0,0.00217247]
[1732062199390,0.0017082,92054.0,92048.0,0.0807]
[1732062199607,0.0017082,92054.0,92049.0,0.10217226]
[1732062199834,0.0017082,92054.0,92049.0,0.29643191]
[1732062200079,0.0017082,92054.0,92051.0,0.1]
[1732062200345,0.0017082,92054.0,92052.0,0.00217226]
[1732062200781,0.0017082,92054.0,92051.0,0.29254464]
[1732062200998,0.0017082,92054.0,92051.0,0.29284707]
[1732062201237,0.0017082,92054.0,92052.0,0.00217221]
[1732062201463,0.0017082,92054.0,92051.0,0.29284707]
[1732062201464,0.0017082,92054.0,92051.0,0.09828499]
[1732062202193,0.0017082,92054.0,92052.0,0.0021722]
[1732062203335,0.0017082,92054.0,92053.0,0.0021722]
[1732062203554,0.0017082,92054.0,92048.0,0.1]
[1732062203766,0.0017082,92054.0,92046.0,0.14435125]
[1732062203983,0.0017082,92054.0,92046.0,0.04435125]
[1732062205072,0.0017082,92054.0,92046.0,0.23889886]
[1732062205291,0.0017082,92054.0,92046.0,0.04435125]
[1732062208897,0.0017082,92054.0,92047.0,0.00217244]
[1732062209346,0.0017082,92054.0,92046.0,0.04435125]
[1732062210460,0.0017082,92054.0,92047.0,0.00217244]
[1732062213331,0.0017082,92054.0,92048.0,0.0822]
[1732062213539,0.0017082,92054.0,92049.0,0.00217224]
[1732062213951,0.0017082,92054.0,92047.0,0.1]
[1732062214173,0.1251,92053.0,92046.0,0.04435125]
[1732062218882,0.0787,92053.0,92046.0,0.04435125]
[1732062219592,0.0017082,92054.0,92047.0,0.00217248]
[1732062220015,0.0017082,92054.0,92047.0,0.10217248]
[1732062221349,0.0017082,92054.0,92047.0,0.00217248]
[1732062221561,0.0017082,92054.0,92049.0,0.29451151]
[1732062221784,0.0017082,92054.0,92049.0,0.1]
[1732062222665,0.0017082,92054.0,92047.0,0.1]
[1732062223580,0.0017082,92054.0,92046.0,0.23886276]
[1732062223581,0.0017082,92054.0,92046.0,0.14435125]
[1732062223798,0.0017082,92054.0,92047.0,0.0021724]
[1732062224034,0.0017082,92054.0,92048.0,0.1]
[1732062224975,0.0017082,92054.0,92049.0,0.0021724]
[1732062225434,0.0017082,92054.0,92051.0,0.1]
[1732062225650,0.0017082,92054.0,92052.0,0.1968257]
[1732062225861,0.0017082,92054.0,92053.0,0.19465338]
[1732062226130,0.0017082,92054.0,92052.0,0.1968257]
[1732062226324,0.0017082,92054.0,92053.0,0.1]
[1732062226785,0.0017082,92054.0,92053.0,0.34329914]
[1732062227221,0.0017082,92054.0,92053.0,0.25858255]
[1732062227435,0.077,92083.0,92074.0,0.1]
[1732062227681,0.077,92083.0,92074.0,0.2945323]
[1732062227922,0.077,92083.0,92077.0,0.1]
[1732062228600,0.077,92083.0,92067.0,0.0807]
[1732062228840,0.077,92083.0,92067.0,0.18976255]
[1732062229288,0.077,92083.0,92067.0,0.23457479]
[1732062230654,0.077,92083.0,92068.0,0.1]
[1732062234235,0.077,92083.0,92069.0,0.00217173]
[1732062234664,0.077,92083.0,92069.0,0.00259173]
[1732062235307,0.077,92083.0,92071.0,0.00042]
[1732062235558,0.077,92083.0,92072.0,0.00217173]
[1732062235785,0.0815092,92091.0,92073.0,0.1]
[1732062236011,0.0017092,92091.0,92082.0,0.00042]
[1732062236235,0.0017092,92091.0,92083.0,0.00217146]
[1732062236482,0.0017092,92091.0,92088.0,0.00042]
[1732062236700,0.0017092,92091.0,92088.0,0.21123382]
[1732062237132,0.0017092,92091.0,92088.0,0.21165382]
[1732062239298,0.0798,92110.0,92103.0,0.1]
[1732062240424,0.0798,92110.0,92081.0,0.00042]
[1732062240649,0.0798,92110.0,92085.0,0.1]
[1732062241536,0.0493,92109.0,92085.0,0.1]
[1732062241752,0.0493,92109.0,92086.0,0.00259123]
[1732062241994,0.0493,92109.0,92087.0,0.00042]
[1732062242210,0.0493,92109.0,92086.0,0.00259123]
[1732062242475,0.0798,92108.0,92086.0,0.00042]
[1732062242703,0.0798,92108.0,92085.0,0.10042]
[1732062243814,0.0798,92108.0,92074.0,0.0824]
[1732062243815,0.18886255,92108.0,92074.0,0.0824]
[1732062244079,0.18886255,92108.0,92073.0,0.1]
[1732062244080,0.00158,92099.0,92075.0,0.10906255]
[1732062244266,0.0798,92097.0,92075.0,0.10906255]
[1732062244489,0.07952892,92097.0,92075.0,0.10906255]
[1732062244700,0.07952892,92097.0,92076.0,0.00217147]
[1732062244925,0.07952892,92097.0,92081.0,0.00042]
[1732062245134,0.0493,92107.0,92082.0,0.11123393]
[1732062245389,0.0493,92107.0,92085.0,0.00042]
[1732062245633,0.0493,92107.0,92086.0,0.00217124]
[1732062245860,0.0493,92107.0,92087.0,0.1]
[1732062246099,0.0493,92107.0,92089.0,0.1]
[1732062246325,0.0493,92107.0,92089.0,0.20906255]
[1732062247236,0.0493,92107.0,92092.0,0.00042]
[1732062247471,0.0493,92107.0,92089.0,0.20948255]
[1732062247685,0.0764,92106.0,92089.0,0.20906255]
[1732062248340,0.0764,92106.0,92090.0,0.10906255]
[1732062248567,0.0764,92114.0,92095.0,0.00042]
[1732062248801,0.0764,92114.0,92096.0,0.00217107]
[1732062249685,0.0008538,92106.0,92096.0,0.00217107]
[1732062250127,0.0008538,92106.0,92097.0,0.10906255]
[1732062250350,0.0008538,92106.0,92105.0,0.00042]
[1732062250768,0.0008538,92106.0,92098.0,0.102171]
[1732062250769,0.0008538,92106.0,92102.0,0.00042]
[1732062250997,0.0008538,92106.0,92105.0,0.00042]
[1732062251212,0.0008538,92106.0,92105.0,0.00259089]
[1732062252164,0.0008538,92106.0,92105.0,0.00217089]
[1732062252407,0.0008538,92106.0,92103.0,0.1]
[1732062253058,0.0008538,92106.0,92104.0,0.0021709]
[1732062253514,0.0017448,92106.0,92104.0,0.0021709]
[1732062253728,0.0017448,92106.0,92105.0,0.00042]
[1732062253962,0.0017448,92106.0,92105.0,0.20906255]
[1732062254204,0.0017448,92106.0,92105.0,0.20948255]
[1732062255121,0.0017448,92106.0,92105.0,0.21165327]
[1732062257977,0.0017448,92106.0,92105.0,0.21123327]
[1732062258268,0.0017448,92106.0,92105.0,0.20906255]
[1732062258715,0.0017448,92106.0,92105.0,0.20948255]
[1732062259159,0.0017448,92106.0,92105.0,0.20906255]
[1732062259401,0.0017448,92106.0,92105.0,0.20948255]
[1732062259629,0.0017448,92106.0,92105.0,0.20906255]
[1732062260070,0.0017448,92106.0,92105.0,0.20948255]
[1732062260317,0.0017448,92106.0,92105.0,0.20906255]
[1732062260776,0.0017448,92106.0,92105.0,0.20948255]
[1732062263491,0.0008538,92106.0,92105.0,0.20948255]
[1732062264378,0.0008538,92106.0,92096.0,0.04372166]
[1732062264786,0.0008538,92106.0,92098.0,0.1]
[1732062265009,0.0008538,92106.0,92099.0,0.10906255]
[1732062265200,0.0008538,92106.0,92100.0,0.1]
[1732062265629,0.0008538,92106.0,92101.0,0.00217104]